lending/lending_fUSD_20240411
["ID","MTS","AMOUNT","RATE_DAILY","PERIOD"]
[322142411,1712848254155,-500.0,0.00032876,2]
[322142412,1712848254165,-152.64615,0.00032876,7]
[322142413,1712848254176,-500.0,0.00032876,2]
[322142414,1712848254186,-500.0,0.00032876,2]
[322142415,1712848254196,-500.0,0.00032876,2]
[322142416,1712848254206,-500.0,0.00032876,2]
[322142417,1712848254216,-500.0,0.00032876,2]
[322142418,1712848254225,-500.0,0.00032876,2]
[322142419,1712848254235,-589.93,0.00032876,2]
[322142420,1712848254244,-320.681158,0.00032876,7]
[322142421,1712848254253,-320.681158,0.00032876,7]
[322142422,1712848254262,-1822.22,0.00032876,2]
[322142423,1712848254272,-500.0,0.00032876,2]
[322142424,1712848254281,-320.681158,0.00032876,7]
[322142425,1712848254292,-500.0,0.00032876,2]
[322142426,1712848254302,-232.5036723,0.00032876,2]
[322142427,1712848254312,-1359.59,0.00032876,2]
[322142428,1712848254322,-320.681158,0.00032876,7]
[322142429,1712848254333,-320.681158,0.00032876,7]
[322142430,1712848254342,-533.95,0.00032876,2]
[322142431,1712848254350,-320.681158,0.00032876,7]
[322142432,1712848254359,-500.0,0.00032876,2]
[322142433,1712848254369,-1569.71,0.00032876,2]
[322142434,1712848254378,-500.0,0.00032876,2]
[322142435,1712848254555,-500.0,0.00032876,2]
[322142436,1712848254565,-500.0,0.00032876,2]
[322142437,1712848254575,-500.0,0.00032876,2]
[322142438,1712848254585,-845.56,0.00032876,2]
[322142439,1712848254594,-500.0,0.00032876,2]
[322142440,1712848254603,-500.0,0.00032876,2]
[322142441,1712848254613,-500.0,0.00032876,2]
[322142442,1712848254622,-500.0,0.00032876,2]
[322142443,1712848254631,-500.0,0.00032876,2]
[322142444,1712848254640,-500.0,0.00032876,2]
[322142445,1712848254649,-500.0,0.00032876,2]
[322142446,1712848254659,-500.0,0.00032876,2]
[322142447,1712848254668,-581.06040343,0.00032876,2]
[322142448,1712848254678,-596.39,0.00032876,2]
[322142449,1712848254686,-572.57,0.00032876,2]
[322142450,1712848254696,-500.0,0.00032876,2]
[322142451,1712848254705,-4675.86,0.00032876,2]
[322142452,1712848254714,-1993.52,0.00032876,2]
[322142453,1712848254723,-854.07,0.00032876,2]
[322142454,1712848254732,-500.0,0.00032876,2]
[322142455,1712848254741,-500.0,0.00032876,2]
[322142456,1712848254750,-1356.68,0.00032876,2]
[322142457,1712848254760,-500.0,0.00032876,2]
[322142458,1712848254769,-500.0,0.00032876,2]
[322142459,1712848254777,-500.0,0.00032876,2]
[322142460,1712848254786,-500.0,0.00032876,2]
[322142461,1712848254796,-1786.68,0.00032876,2]
[322142462,1712848254805,-509.93,0.00032876,2]
[322142463,1712848254815,-625.05,0.00032876,2]
[322142464,1712848254825,-500.0,0.00032876,2]
[322142465,1712848254836,-500.0,0.00032876,2]
[322142466,1712848254845,-500.0,0.00032876,2]
[322142467,1712848254855,-500.0,0.00032876,2]
[322142468,1712848254864,-729.2,0.00032876,2]
[322142469,1712848254873,-500.0,0.00032876,2]
[322142470,1712848254883,-672.56,0.00032876,2]
[322142471,1712848254892,-500.0,0.00032876,2]
[322142472,1712848254901,-500.0,0.00032876,2]
[322142473,1712848254911,-500.0,0.00032876,2]
[322142474,1712848254920,-1482.83,0.00032876,2]
[322142475,1712848254929,-500.0,0.00032876,2]
[322142476,1712848254938,-500.0,0.00032876,2]
[322142477,1712848254948,-1008.59,0.00032876,2]
[322142478,1712848254957,-500.0,0.00032876,2]
[322142479,1712848254967,-500.0,0.00032876,2]
[322142480,1712848254976,-541.15395965,0.00032876,2]
[322142481,1712848254985,-1969.2,0.00032876,2]
[322142482,1712848254995,-500.0,0.00032876,2]
[322142483,1712848255004,-956.94,0.00032876,2]
[322142484,1712848255013,-521.06229654,0.00032876,2]
[322142485,1712848255023,-500.0,0.00032876,2]
[322142486,1712848255032,-500.0,0.00032876,2]
[322142487,1712848255041,-951.94,0.00032876,2]
[322142488,1712848255050,-500.0,0.00032876,2]
[322142489,1712848255060,-1485.78,0.00032876,2]
[322142490,1712848255069,-500.0,0.00032876,2]
[322142491,1712848255080,-500.0,0.00032876,2]
[322142492,1712848255089,-740.41,0.00032876,2]
[322142493,1712848255098,-500.0,0.00032876,2]
[322142494,1712848255107,-614.061326,0.00032876,7]
[322142495,1712848255121,-614.061326,0.00032876,7]
[322142496,1712848255130,-614.061326,0.00032876,7]
[322142497,1712848255140,-923.35,0.00032876,2]
[322142498,1712848255150,-500.0,0.00032876,2]
[322142499,1712848255160,-547.77,0.00032876,2]
[322142500,1712848255169,-500.0,0.00032876,2]
[322142501,1712848255178,-500.0,0.00032876,2]
[322142502,1712848255187,-500.0,0.00032876,2]
[322142503,1712848255198,-3065.38,0.00032876,2]
[322142504,1712848255208,-600.68114521,0.00032876,2]
[322142505,1712848255217,-614.061326,0.00032876,7]
[322142506,1712848255226,-614.061326,0.00032876,7]
[322142507,1712848255235,-500.0,0.00032876,2]
[322142508,1712848255244,-614.061326,0.00032876,7]
[322142509,1712848255253,-500.0,0.00032876,2]
[322142510,1712848255262,-500.0,0.00032876,2]
[322142511,1712848255271,-500.0,0.00032876,2]
[322142512,1712848255280,-500.0,0.00032876,2]
[322142513,1712848255289,-890.15,0.00032876,2]
[322142514,1712848255298,-500.0,0.00032876,2]
[322142515,1712848255308,-500.0,0.00032876,2]
[322142516,1712848255317,-500.0,0.00032876,2]
[322142517,1712848255327,-500.0,0.00032876,2]
[322142518,1712848255336,-500.0,0.00032876,2]
[322142519,1712848255345,-500.0,0.00032876,2]
[322142520,1712848255354,-500.0,0.00032876,2]
[322142521,1712848255363,-500.0,0.00032876,2]
[322142522,1712848255372,-500.0,0.00032876,2]
[322142523,1712848255381,-151.0,0.00032876,7]
[322142524,1712848255390,-151.0,0.00032876,7]
[322142525,1712848255399,-500.0,0.00032876,2]
[322142526,1712848255408,-151.0,0.00032876,7]
[322142527,1712848255418,-500.0,0.00032876,2]
[322142528,1712848255426,-500.0,0.00032876,2]
[322142529,1712848255436,-1162.53,0.00032876,2]
[322142530,1712848255445,-1671.2,0.00032876,2]
[322142531,1712848255454,-1912.2,0.00032876,2]
[322142532,1712848255463,-500.0,0.00032876,2]
[322142533,1712848255472,-685.11,0.00032876,2]
[322142534,1712848255481,-682.15,0.00032876,2]
[322142535,1712848255490,-151.0,0.00032876,7]
[322142536,1712848255500,-151.0,0.00032876,7]
[322142537,1712848255509,-608.74,0.00032876,2]
[322142538,1712848255518,-208.21826,0.00032876,7]
[322142539,1712848255527,-500.0,0.00032876,2]
[322142540,1712848255536,-965.85,0.00032876,2]
[322142541,1712848255545,-1852.99,0.00032876,2]
[322142542,1712848255554,-546.56591022,0.00032876,2]
[322142543,1712848255563,-500.0,0.00032876,2]
[322142544,1712848255572,-500.0,0.00032876,2]
[322142545,1712848255583,-500.0,0.00032876,2]
[322142546,1712848255591,-519.23,0.00032876,2]
[322142547,1712848255600,-151.0,0.00032876,7]
[322142548,1712848255609,-151.0,0.00032876,7]
[322142549,1712848255618,-977.18,0.00032876,2]
[322142550,1712848255627,-500.0,0.00032876,2]
[322142551,1712848255644,-151.0,0.00032876,7]
[322142552,1712848255668,-500.0,0.00032876,2]
[322142553,1712848255684,-500.0,0.00032876,2]
[322142554,1712848255704,-565.7,0.00032876,2]
[322142555,1712848255720,-2716.5,0.00032876,2]
[322142556,1712848255737,-500.0,0.00032876,2]
[322142557,1712848255755,-500.0,0.00032876,2]
[322142558,1712848255771,-500.0,0.00032876,2]
[322142559,1712848255792,-500.0,0.00032876,2]
[322142560,1712848255810,-500.0,0.00032876,2]
[322142561,1712848255826,-500.0,0.00032876,2]
[322142562,1712848255845,-1101.15,0.00032876,2]
[322142563,1712848255863,-500.0,0.00032876,2]
[322142564,1712848255876,-500.0,0.00032876,2]
[322142565,1712848255893,-500.0,0.00032876,2]
[322142566,1712848255907,-1930.2,0.00032876,2]
[322142567,1712848255922,-500.0,0.00032876,2]
[322142568,1712848255936,-500.0,0.00032876,2]
[322142569,1712848255951,-505.98968558,0.00032876,2]
[322142570,1712848255967,-500.0,0.00032876,2]
[322142571,1712848255981,-500.0,0.00032876,2]
[322142572,1712848255996,-500.0,0.00032876,2]
[322142573,1712848256012,-500.0,0.00032876,2]
[322142574,1712848256027,-873.05,0.00032876,2]
[322142575,1712848256041,-500.0,0.00032876,2]
[322142576,1712848256057,-151.0,0.00032876,7]
[322142577,1712848256072,-500.0,0.00032876,2]
[322142578,1712848256088,-151.0,0.00032876,7]
[322142579,1712848256104,-151.0,0.00032876,7]
[322142580,1712848256129,-434.48106713,0.00032876,2]
[322142581,1712848256144,-500.0,0.00032876,2]
[322142582,1712848256159,-510.31,0.00032876,2]
[322142583,1712848256174,-500.0,0.00032876,2]
[322142584,1712848256189,-500.0,0.00032876,2]
[322142585,1712848256203,-500.0,0.00032876,2]
[322142586,1712848256219,-500.0,0.00032876,2]
[322142587,1712848256233,-500.0,0.00032876,2]
[322142588,1712848256248,-182.14551113,0.00032876,2]
[322142589,1712848256263,-500.0,0.00032876,2]
[322142590,1712848256279,-533.64202957,0.00032876,2]
[322142591,1712848256294,-1206.16,0.00032876,2]
[322142592,1712848256309,-769.09,0.00032876,2]
[322142593,1712848256326,-151.0,0.00032876,7]
[322142594,1712848256341,-151.0,0.00032876,7]
[322142595,1712848256358,-749.46,0.00032876,2]
[322142596,1712848256372,-500.0,0.00032876,2]
[322142597,1712848256388,-500.0,0.00032876,2]
[322142598,1712848256405,-151.0,0.00032876,7]
[322142599,1712848256420,-2635.43,0.00032876,2]
[322142600,1712848256435,-566.66,0.00032876,2]
[322142601,1712848256450,-500.0,0.00032876,2]
[322142602,1712848256465,-515.02,0.00032876,2]
[322142603,1712848256481,-500.0,0.00032876,2]
[322142604,1712848256498,-500.0,0.00032876,2]
[322142605,1712848256512,-580.55,0.00032876,2]
[322142606,1712848256527,-585.38,0.00032876,2]
[322142607,1712848256542,-1954.04,0.00032876,2]
[322142608,1712848256558,-500.0,0.00032876,2]
[322142609,1712848256573,-769.14,0.00032876,2]
[322142610,1712848256589,-1944.92,0.00032876,2]
[322142611,1712848256603,-500.0,0.00032876,2]
[322142612,1712848256617,-151.0,0.00032876,7]
[322142613,1712848256632,-151.0,0.00032876,7]
[322142614,1712848256647,-151.0,0.00032876,7]
[322142615,1712848256663,-1383.67,0.00032876,2]
[322142616,1712848256677,-500.0,0.00032876,2]
[322142617,1712848256693,-500.0,0.00032876,2]
[322142618,1712848256707,-724.86,0.00032876,2]
[322142619,1712848256722,-500.0,0.00032876,2]
[322142620,1712848256738,-151.0,0.00032876,7]
[322142621,1712848256753,-513.73528044,0.00032876,2]
[322142622,1712848256769,-151.0,0.00032876,7]
[322142623,1712848256785,-546.3,0.00032876,2]
[322142624,1712848256801,-151.0,0.00032876,7]
[322142625,1712848256816,-500.0,0.00032876,2]
[322142626,1712848256834,-500.0,0.00032876,2]
[322142627,1712848256850,-1253.52,0.00032876,2]
[322142628,1712848256867,-500.0,0.00032876,2]
[322142629,1712848256882,-536.7,0.00032876,2]
[322142630,1712848256898,-669.02,0.00032876,2]
[322142631,1712848256913,-500.0,0.00032876,2]
[322142632,1712848256928,-795.3,0.00032876,2]
[322142633,1712848256943,-500.0,0.00032876,2]
[322142634,1712848256957,-500.0,0.00032876,2]
[322142635,1712848256973,-500.0,0.00032876,2]
[322142636,1712848256987,-3140.81,0.00032876,2]
[322142637,1712848257002,-269.07519245,0.00032876,2]
[322142638,1712848257017,-500.0,0.00032876,2]
[322142639,1712848257033,-525.13004729,0.00032876,2]
[322142640,1712848257048,-500.0,0.00032876,2]
[322142641,1712848257064,-151.0,0.00032876,7]
[322142642,1712848257080,-500.0,0.00032876,2]
[322142643,1712848257096,-154.237556,0.00032876,7]
[322142644,1712848257112,-500.0,0.00032876,2]
[322142645,1712848257130,-210.03,0.00032876,2]
[322142646,1712848257146,-500.0,0.00032876,2]
[322142647,1712848257162,-1145.09,0.00032876,2]
[322142648,1712848257177,-500.0,0.00032876,2]
[322142649,1712848257192,-500.0,0.00032876,2]
[322142650,1712848257208,-317.90466902,0.00032876,2]
[322142651,1712848257223,-300.0,0.00032876,2]
[322142652,1712848257238,-508.32390545,0.00032876,2]
[322142653,1712848257254,-500.0,0.00032876,2]
[322142654,1712848257269,-500.0,0.00032876,2]
[322142655,1712848257284,-1680.65,0.00032876,2]
[322142656,1712848257298,-1522.41,0.00032876,2]
[322142657,1712848257313,-709.81,0.00032876,2]
[322142658,1712848257330,-166.57374161,0.00032876,2]
[322142659,1712848257346,-500.0,0.00032876,2]
[322142660,1712848257360,-1440.36,0.00032876,2]
[322142661,1712848257370,-2702.16,0.00032876,2]
[322142662,1712848257380,-1486.93,0.00032876,2]
[322142663,1712848257389,-1792.03,0.00032876,2]
[322142664,1712848257399,-322.5796301,0.00032876,2]
[322142665,1712848257408,-5000.0,0.00032876,2]
[322142666,1712848257418,-500.0,0.00032876,2]
[322142667,1712848257428,-2974.4,0.00032876,2]
[322142668,1712848257754,-500.0,0.00032876,2]
[322142669,1712848257779,-500.0,0.00032876,2]
[322142670,1712848257789,-500.0,0.00032876,2]
[322142671,1712848257799,-1355.07,0.00032876,2]
[322142672,1712848257809,-6272.22,0.00032876,2]
[322142673,1712848257818,-839.27,0.00032876,2]
[322142674,1712848257827,-500.0,0.00032876,2]
[322142675,1712848257837,-500.0,0.00032876,2]
[322142676,1712848257847,-500.0,0.00032876,2]
[322142677,1712848257856,-500.0,0.00032876,2]
[322142678,1712848257866,-500.0,0.00032876,2]
[322142679,1712848257875,-500.0,0.00032876,2]
[322142680,1712848257884,-500.0,0.00032876,2]
[322142681,1712848257894,-588.34,0.00032876,2]
[322142682,1712848257903,-500.0,0.00032876,2]
[322142683,1712848257913,-500.0,0.00032876,2]
[322142684,1712848257922,-1284.04,0.00032876,2]
[322142685,1712848257931,-4649.4,0.00032876,2]
[322142686,1712848257941,-151.0,0.00032876,7]
[322142687,1712848257951,-500.0,0.00032876,2]
[322142688,1712848257960,-500.0,0.00032876,2]
[322142689,1712848257970,-151.0,0.00032876,7]
[322142690,1712848257979,-1433.72,0.00032876,2]
[322142691,1712848257989,-500.0,0.00032876,2]
[322142692,1712848257999,-151.0,0.00032876,7]
[322142693,1712848258009,-500.0,0.00032876,2]
[322142694,1712848258018,-500.0,0.00032876,2]
[322142695,1712848258028,-740.66,0.00032876,2]
[322142696,1712848258037,-500.0,0.00032876,2]
[322142697,1712848258047,-551.66,0.00032876,2]
[322142698,1712848258057,-500.0,0.00032876,2]
[322142699,1712848258066,-1412.78,0.00032876,2]
[322142700,1712848258075,-4896.68,0.00032876,2]
[322142701,1712848258089,-500.0,0.00032876,2]
[322142702,1712848258099,-500.0,0.00032876,2]
[322142703,1712848258110,-500.0,0.00032876,2]
[322142704,1712848258121,-2627.94,0.00032876,2]
[322142705,1712848258130,-500.0,0.00032876,2]
[322142706,1712848258140,-500.0,0.00032876,2]
[322142707,1712848258150,-500.0,0.00032876,2]
[322142708,1712848258160,-500.0,0.00032876,2]
[322142709,1712848258169,-500.0,0.00032876,2]
[322142710,1712848258179,-169.064216,0.00032876,7]
[322142711,1712848258189,-1233.67,0.00032876,2]
[322142712,1712848258199,-500.0,0.00032876,2]
[322142713,1712848258208,-169.064216,0.00032876,7]
[322142714,1712848258218,-6982.06,0.00032876,2]
[322142715,1712848258228,-500.0,0.00032876,2]
[322142716,1712848258237,-169.064216,0.00032876,7]
[322142717,1712848258246,-521.47642031,0.00032876,2]
[322142718,1712848258255,-500.0,0.00032876,2]
[322142719,1712848258265,-653.75,0.00032876,2]
[322142720,1712848258274,-500.0,0.00032876,2]
[322142721,1712848258283,-40373.99,0.00032876,2]
[322142722,1712848258292,-1158.93,0.00032876,2]
[322142723,1712848258302,-500.0,0.00032876,2]
[322142724,1712848258312,-169.064216,0.00032876,7]
[322142725,1712848258321,-169.064216,0.00032876,7]
[322142726,1712848258331,-169.064216,0.00032876,7]
[322142727,1712848258341,-682.16,0.00032876,2]
[322142728,1712848258351,-500.0,0.00032876,2]
[322142729,1712848258360,-502.03,0.00032876,2]
[322142730,1712848258370,-500.0,0.00032876,2]
[322142731,1712848258379,-546.44429133,0.00032876,2]
[322142732,1712848258387,-500.0,0.00032876,2]
[322142733,1712848258397,-3471.46,0.00032876,2]
[322142734,1712848258406,-507.06894005,0.00032876,2]
[322142735,1712848258416,-504.82972057,0.00032876,2]
[322142736,1712848258425,-11250.63,0.00032876,2]
[322142737,1712848258434,-500.0,0.00032876,2]
[322142738,1712848258444,-2655.3,0.00032876,2]
[322142739,1712848258453,-500.0,0.00032876,2]
[322142740,1712848258462,-500.0,0.00032876,2]
[322142741,1712848258471,-1317.26,0.00032876,2]
[322142742,1712848258481,-545.86,0.00032876,2]
[322142743,1712848258490,-1692.79,0.00032876,2]
[322142744,1712848258499,-3523.35,0.00032876,2]
[322142745,1712848258509,-500.0,0.00032876,2]
[322142746,1712848258518,-1672.24,0.00032876,2]
[322142747,1712848258528,-500.0,0.00032876,2]
[322142748,1712848258537,-710.09,0.00032876,2]
[322142749,1712848258547,-749.395887,0.00032876,2]
[322142750,1712848258556,-834.08,0.00032876,2]
[322142751,1712848258565,-749.395887,0.00032876,2]
[322142752,1712848258574,-749.395887,0.00032876,2]
[322142753,1712848258585,-1783.02,0.00032876,2]
[322142754,1712848258593,-500.0,0.00032876,2]
[322142755,1712848258603,-2223.91,0.00032876,2]
[322142756,1712848258612,-500.0,0.00032876,2]
[322142757,1712848258621,-500.0,0.00032876,2]
[322142758,1712848258630,-536.27644778,0.00032876,2]
[322142759,1712848258639,-749.395887,0.00032876,2]
[322142760,1712848258650,-749.395887,0.00032876,2]
[322142761,1712848258660,-749.395887,0.00032876,2]
[322142762,1712848258669,-151.0,0.00032876,7]
[322142763,1712848258678,-1458.66,0.00032876,2]
[322142764,1712848258687,-153.547923,0.00032876,7]
[322142765,1712848258696,-500.0,0.00032876,2]
[322142766,1712848258705,-500.0,0.00032876,2]
[322142767,1712848258715,-4887.12,0.00032876,2]
[322142768,1712848258724,-629.19,0.00032876,2]
[322142769,1712848258733,-4887.12,0.00032876,2]
[322142770,1712848258743,-4887.12,0.00032876,2]
[322142771,1712848258752,-4887.12,0.00032876,2]
[322142772,1712848258761,-500.0,0.00032876,2]
[322142773,1712848258770,-723.79,0.00032876,2]
[322142774,1712848258779,-4887.12,0.00032876,2]
[322142775,1712848258789,-4887.12,0.00032876,2]
[322142776,1712848258797,-4887.12,0.00032876,2]
[322142777,1712848258806,-952.19,0.00032876,2]
[322142778,1712848258816,-4170.7,0.00032876,2]
[322142779,1712848258825,-500.0,0.00032876,2]
[322142780,1712848258837,-500.0,0.00032876,2]
[322142781,1712848258846,-858.68,0.00032876,2]
[322142782,1712848258855,-500.0,0.00032876,2]
[322142783,1712848258864,-500.0,0.00032876,2]
[322142784,1712848258873,-2945.06,0.00032876,2]
[322142785,1712848258883,-500.0,0.00032876,2]
[322142786,1712848258892,-13318.31229795,0.00032876,2]
[322142787,1712848259593,-7265.15488194,0.00032876,2]
[322142788,1712848259605,-397.00005046,0.00032876,2]
[322142789,1712848259653,-1127.7679942,0.00031949,2]
[322142790,1712848259665,-53207.34276965,0.00032876,2]
[322142791,1712848259674,-553.68664438,0.00032876,2]
[322142792,1712848259685,-3299.75,0.00032876,2]
[322142793,1712848259695,-537.84132992,0.00032876,2]
[322142794,1712848259704,-681.81,0.00032876,2]
[322142795,1712848259714,-4887.12,0.00032876,2]
[322142796,1712848259723,-4887.12,0.00032876,2]
[322142797,1712848259733,-500.0,0.00032876,2]
[322142798,1712848259743,-4887.12,0.00032876,2]
[322142799,1712848259753,-2359.92,0.00032876,2]
[322142800,1712848259763,-4887.12,0.00032876,2]
[322142801,1712848259772,-500.0,0.00032876,2]
[322142802,1712848259783,-4887.12,0.00032876,2]
[322142803,1712848259793,-500.0,0.00032876,2]
[322142804,1712848259802,-4887.12,0.00032876,2]
[322142805,1712848259811,-4887.12,0.00032876,2]
[322142806,1712848259822,-4887.12,0.00032876,2]
[322142807,1712848259833,-4887.12,0.00032876,2]
[322142808,1712848259842,-500.0,0.00032876,2]
[322142809,1712848259852,-4887.12,0.00032876,2]
[322142810,1712848259862,-4887.12,0.00032876,2]
[322142811,1712848259871,-4887.12,0.00032876,2]
[322142812,1712848259881,-4887.12,0.00032876,2]
[322142813,1712848259891,-500.0,0.00032876,2]
[322142814,1712848259900,-4887.12,0.00032876,2]
[322142815,1712848259909,-4887.12,0.00032876,2]
[322142816,1712848259919,-4887.12,0.00032876,2]
[322142817,1712848259928,-500.0,0.00032876,2]
[322142818,1712848259938,-500.0,0.00032876,2]
[322142819,1712848259948,-4887.28915148,0.00032876,2]
[322142820,1712848259958,-5763.82,0.00032876,2]
[322142821,1712848259967,-2537.52,0.00032876,2]
[322142822,1712848259976,-991.8,0.00032876,2]
[322142823,1712848259985,-508.51287303,0.00032876,2]
[322142824,1712848259995,-5343.07,0.00032876,2]
[322142825,1712848260004,-5520.67,0.00032876,2]
[322142826,1712848260014,-500.0,0.00032876,2]
[322142827,1712848260023,-500.0,0.00032876,2]
[322142828,1712848260033,-500.0,0.00032876,2]
[322142829,1712848260043,-500.0,0.00032876,2]
[322142830,1712848260052,-500.0,0.00032876,2]
[322142831,1712848260061,-500.0,0.00032876,2]
[322142832,1712848260071,-500.0,0.00032876,2]
[322142833,1712848260083,-1119.73,0.00032876,2]
[322142834,1712848260092,-500.0,0.00032876,2]
[322142835,1712848260101,-27225.59,0.00032876,2]
[322142836,1712848260111,-500.0,0.00032876,2]
[322142837,1712848260124,-1397.11,0.00032876,2]
[322142838,1712848260133,-1096.22,0.00032876,2]
[322142839,1712848260143,-500.0,0.00032876,2]
[322142840,1712848260152,-500.0,0.00032876,2]
[322142841,1712848260163,-1822.04,0.00032876,2]
[322142842,1712848260173,-500.0,0.00032876,2]
[322142843,1712848260182,-503.3303883,0.00032876,2]
[322142844,1712848260193,-4893.2,0.00032876,2]
[322142845,1712848260203,-4897.16,0.00032876,2]
[322142846,1712848260212,-500.0,0.00032876,2]
[322142847,1712848260222,-512.26,0.00032876,2]
[322142848,1712848260231,-500.0,0.00032876,2]
[322142849,1712848260240,-500.0,0.00032876,2]
[322142850,1712848260250,-1189.92,0.00032876,2]
[322142851,1712848260260,-1793.21,0.00032876,2]
[322142852,1712848260269,-500.0,0.00032876,2]
[322142853,1712848260278,-151.0,0.00032876,7]
[322142854,1712848260287,-151.0,0.00032876,7]
[322142855,1712848260297,-217.60666133,0.00032876,2]
[322142856,1712848260307,-151.0,0.00032876,7]
[322142857,1712848260316,-500.0,0.00032876,2]
[322142858,1712848260325,-500.0,0.00032876,2]
[322142859,1712848260336,-552.81,0.00032876,2]
[322142860,1712848260345,-500.0,0.00032876,2]
[322142861,1712848260354,-500.0,0.00032876,2]
[322142862,1712848260363,-2826.28,0.00032876,2]
[322142863,1712848260373,-1713.0,0.00032876,2]
[322142864,1712848260382,-341.47211781,0.00032876,2]
[322142865,1712848260391,-151.0,0.00032876,7]
[322142866,1712848260643,-158.036766,0.00032876,7]
[322142867,1712848260653,-500.0,0.00032876,2]
[322142868,1712848260663,-500.0,0.00032876,2]
[322142869,1712848260673,-500.0,0.00032876,2]
[322142870,1712848260682,-500.0,0.00032876,2]
[322142871,1712848260691,-774.51,0.00032876,2]
[322142872,1712848260700,-500.0,0.00032876,2]
[322142873,1712848260709,-151.0,0.00032876,7]
[322142874,1712848260719,-500.0,0.00032876,2]
[322142875,1712848260728,-500.0,0.00032876,2]
[322142876,1712848260738,-748.85,0.00032876,2]
[322142877,1712848260747,-151.0,0.00032876,7]
[322142878,1712848260756,-176.854421,0.00032876,7]
[322142879,1712848260766,-151.0,0.00032876,7]
[322142880,1712848260776,-176.854421,0.00032876,7]
[322142881,1712848260785,-523.01457853,0.00032876,2]
[322142882,1712848260794,-500.0,0.00032876,2]
[322142883,1712848260803,-176.854421,0.00032876,7]
[322142884,1712848260813,-8670.17,0.00032876,2]
[322142885,1712848260822,-500.0,0.00032876,2]
[322142886,1712848260832,-248.879466,0.00032876,7]
[322142887,1712848260842,-501.81,0.00032876,2]
[322142888,1712848260853,-2717.55,0.00032876,2]
[322142889,1712848260862,-4220.72,0.00032876,2]
[322142890,1712848260873,-187.38902593,0.00032876,2]
[322142891,1712848260883,-5171.04,0.00032876,2]
[322142892,1712848260893,-2064.28,0.00032876,2]
[322142893,1712848260903,-500.0,0.00032876,2]
[322142894,1712848260912,-500.0,0.00032876,2]
[322142895,1712848260922,-1125.04,0.00032876,2]
[322142896,1712848260931,-6082.34,0.00032876,2]
[322142897,1712848260940,-500.0,0.00032876,2]
[322142898,1712848260950,-14673.52,0.00032876,2]
[322142899,1712848260960,-900.87,0.00032876,2]
[322142900,1712848260970,-500.0,0.00032876,2]
[322142901,1712848260980,-500.0,0.00032876,2]
[322142902,1712848260990,-2621.87,0.00032876,2]
[322142903,1712848261000,-563.72,0.00032876,2]
[322142904,1712848261009,-500.0,0.00032876,2]
[322142905,1712848261017,-500.0,0.00032876,2]
[322142906,1712848261028,-500.0,0.00032876,2]
[322142907,1712848261038,-546.08,0.00032876,2]
[322142908,1712848261049,-2603.73,0.00032876,2]
[322142909,1712848261059,-176.854421,0.00032876,7]
[322142910,1712848261069,-9232.3,0.00032876,2]